{"text_format":"1","workbook":"xlsx","n_sheets":2,"sheets":["Justificativas_RH","Planilha1"],"not_rendered":{"charts":0,"images":0,"macros":1,"external_links":3,"defined_names":1225,"comments":0,"pivot_tables":0},"unopened":[],"bounds":{"document_bytes":16777216,"sheet_cells":100000,"rows_first":2000,"rows_last":500,"rows_between":2000,"halvings":0,"cell_chars":16384,"cell_head_chars":4096},"cells_cut":0,"cells_raw":0,"read":"whole","date_system":"1900"}

{"sheet":"Justificativas_RH","index":0,"n_rows":12,"n_cols":96,"rows_kept":12,"cut":false,"hidden":false,"merged":[[1,75,1,79],[1,83,1,87],[1,91,1,95],[1,3,1,7],[1,11,1,15],[1,19,1,23],[1,27,1,31],[1,35,1,39],[1,43,1,47],[1,51,1,55],[1,59,1,63],[1,67,1,71]]}
[1,{"$f":"A1+1","v":2},3,4,5,6,7,8,9,10,11,12,13,14,15,16,17,18,19,20,21,22,23,24,25,26,27,28,29,30,31,32,33,{"$f":"AG1+1","v":34},35,36,37,38,39,40,41,42,43,44,45,46,47,48,49,50,51,52,53,54,55,56,57,58,59,60,61,62,63,64,65,{"$f":"BM1+1","v":66},67,68,69,70,71,72,73,74,75,76,77,78,79,80,81,82,83,84,85,86,87,88,89,90,91,92,93,94,95,96]
[null,null,null,"2024-01-01",null,null,null,null,null,null,null,{"$f":"EDATE(D2,1)","v":"2024-02-01"},null,null,null,null,null,null,null,{"$f":"EDATE(L2,1)","v":"2024-03-01"},null,null,null,null,null,null,null,{"$f":"EDATE(T2,1)","v":"2024-04-01"},null,null,null,null,null,null,null,{"$f":"EDATE(AB2,1)","v":"2024-05-01"},null,null,null,null,null,null,null,{"$f":"EDATE(AJ2,1)","v":"2024-06-01"},null,null,null,null,null,null,null,{"$f":"EDATE(AR2,1)","v":"2024-07-01"},null,null,null,null,null,null,null,{"$f":"EDATE(AZ2,1)","v":"2024-08-01"},null,null,null,null,null,null,null,{"$f":"EDATE(BH2,1)","v":"2024-09-01"},null,null,null,null,null,null,null,{"$f":"EDATE(BP2,1)","v":"2024-10-01"},null,null,null,null,null,null,null,{"$f":"EDATE(BX2,1)","v":"2024-11-01"},null,null,null,null,null,null,null,{"$f":"EDATE(CF2,1)","v":"2024-12-01"}]
["contas",null,null,"Descrição da Conta",".","Mês","Justificativa","Categoria",null,null,null,"Descrição da Conta",".","Mês","Justificativa","Categoria",null,null,null,"Descrição da Conta",null,null,"Justificativa","Categoria",null,null,null,"Descrição da Conta",null,null,"Justificativa","Categoria",null,null,null,"Descrição da Conta",null,null,"Justificativa","Categoria",null,null,null,"Descrição da Conta",null,null,"Justificativa","Categoria",null,null,null,"Descrição da Conta",null,null,"Justificativa","Categoria",null,null,null,"Descrição da Conta",null,null,"Justificativa","Categoria",null,null,null,"Descrição da Conta",null,null,"Justificativa","Categoria",null,null,null,"Descrição da Conta",null,null,"Justificativa","Categoria",null,null,null,"Descrição da Conta",null,null,"Justificativa","Categoria",null,null,null,"Descrição da Conta",null,null,"Justificativa","Categoria"]
["SALARIOS E ORDENADOS/DIR",null,".","SALARIOS E ORDENADOS/DIR",null,null,"150 func. a R$ 500,00","Base de Cálculo",null,null,null,"SALARIOS E ORDENADOS/DIR",null,null,"850 func. a R$ 800,00","Base de Cálculo",null,null,null,"SALARIOS E ORDENADOS/DIR",null,null,"50 func. a R$ 900,00","Base de Cálculo"]
["BENEFICIOS/DIR",null,null,"BENEFICIOS/DIR",null,null,"VT para 10 func. a R$ 90,00","Base de Cálculo",null,null,null,"HORAS EXTRAS/DIR",null,null,"Projeção de 50 HE para 02/2024.","Base de Cálculo",null,null,null,"HORAS EXTRAS/DIR",null,null,"Projeção de 50 HE para 03/2024.","Base de Cálculo"]
["HORAS EXTRAS/DIR",null,null,"HORAS EXTRAS/DIR",null,null,"Projeção de 10 HE para 01/2024.","Base de Cálculo",null,null,null,null,null,null,null,null,null,null,null,"INDENIZACOES/DIR",null,null,"Demisão de 1 funcionário","Serviços"]
["INDENIZACOES/DIR"]
["ABONO SALARIAL/DIR"]
["PENSÃO VITALICIA/DIR"]
["SALARIOS E ORDENADOS/IND"]
["BENEFICIOS/IND"]
["HORAS EXTRAS/IND"]

{"sheet":"Planilha1","index":1,"n_rows":15,"n_cols":1,"rows_kept":15,"cut":false,"hidden":true,"merged":[]}
["Olá"]
[]
["Tenho uma listBox, que necessito através do filtro de mês que carregue os dados já gravados de Justificativa e categoria;"]
["Vamos usar como exemplo a escolha do mês de janeiro;"]
["Pós carregar que seja possível alterar o dado selecionado( somente justificativa e ou categoria), ex. coluna G e H;"]
["Há a necessidade de  somente Deletar dados( não excluir linhas), para este ex. se considera a coluna descrição de conta junto( colunas D até H), como exemplo;"]
[]
["Tentei fazer algo semelhante a inclusão( achei esta macro), mas sem sucesso."]
[]
[]
[]
[]
[]
[]
["ListBox( filtro por mês)- Alteração e Exclusão de dados"]